fUST/lending_fUST_20250725
["ID","MTS","AMOUNT","RATE_DAILY","PERIOD"]
[374790583,1753446655791,-151.0,0.0002376,2]
[374790584,1753446655801,-151.0,0.0002376,2]
[374790585,1753446655810,-151.0,0.0002376,2]
[374790586,1753446655820,-151.0,0.0002376,2]
[374790587,1753446655829,-151.0,0.0002376,2]
[374790588,1753446655839,-151.0,0.0002376,2]
[374790589,1753446655849,-151.0,0.0002376,2]
[374790590,1753446655859,-500.0,0.0002376,2]
[374790591,1753446655874,-151.0,0.0002376,2]
[374790592,1753446655892,-151.0,0.0002376,2]
[374790593,1753446655903,-253.52046372,0.0002376,2]
[374790594,1753446655913,-154.09278747,0.0002376,2]
[374790595,1753446655923,-151.0,0.0002376,2]
[374790596,1753446655932,-265.14297112,0.0002376,2]
[374790597,1753446655943,-151.0,0.0002376,2]
[374790598,1753446655953,-509.55,0.00023767,7]
[374790599,1753446655962,-254.0069119,0.00023781,2]
[374790600,1753446655972,-168.0,0.00023791,2]
[374790601,1753446655982,-151.0,0.000238,10]
[374790602,1753446655991,-152.704267,0.00023825,9]
[374790603,1753446656001,-323.36675257,0.00023831,2]
[374790604,1753446656010,-12500.0,0.00023835,7]
[374790605,1753446656020,-11746.45885052,0.00023835,7]
[374790606,1753446656030,-460.0,0.00023835,2]
[374790607,1753446656040,-151.0,0.00023835,7]
[374790608,1753446656051,-632.94,0.00023835,2]
[374790609,1753446656061,-887.82,0.00023835,2]
[374790610,1753446656070,-520.02,0.00023835,2]
[374790611,1753446656080,-4130.28,0.00023835,2]
[374790612,1753446656089,-588.86,0.00023835,2]
[374790613,1753446656099,-3401.29,0.00023835,2]
[374790614,1753446656109,-1596.19,0.00023835,2]
[374790615,1753446656120,-678.92,0.00023835,2]
[374790616,1753446656134,-1238.21,0.00023835,2]
[374790617,1753446656145,-1434.65,0.00023835,2]
[374790618,1753446656154,-469.39,0.00023835,2]
[374790619,1753446656164,-885.79,0.00023835,2]
[374790620,1753446656175,-1182.99,0.00023835,2]
[374790621,1753446656184,-151.0,0.00023835,7]
[374790622,1753446656194,-1059.6,0.00023835,2]
[374790623,1753446656204,-368.337566,0.00023835,7]
[374790624,1753446656215,-368.337566,0.00023835,7]
[374790625,1753446656225,-753.31,0.00023835,2]
[374790626,1753446656235,-1227.54,0.00023835,2]
[374790627,1753446656244,-460.0,0.00023835,2]
[374790628,1753446656254,-460.0,0.00023835,2]
[374790629,1753446656264,-1026.89,0.00023835,2]
[374790630,1753446656273,-152.704267,0.00023838,9]
[374790631,1753446656283,-152.704267,0.0002385,9]
[374790632,1753446656293,-823.0,0.00023859,2]
[374790633,1753446656304,-160.0,0.00023865,4]
[374790634,1753446656313,-509.62247501,0.00023867,5]
[374790635,1753446656323,-177.7876737,0.00023873,2]
[374790636,1753446656333,-254.0069119,0.0002389,2]
[374790637,1753446656343,-1694.14810197,0.000239,2]
[374790638,1753446656353,-600.0,0.00023904,2]
[374790639,1753446656363,-360.53,0.00023963,2]
[374790640,1753446656373,-1080.79786783,0.00023969,10]
[374790641,1753446656383,-216.1,0.00023971,6]
[374790642,1753446656393,-168.0,0.00023977,2]
[374790643,1753446656402,-168.0,0.00023979,2]
[374790644,1753446656412,-254.0069119,0.00024,2]
[374790645,1753446656422,-840.4016166,0.00024,7]
[374790646,1753446656432,-160.0,0.00024,7]
[374790647,1753446656442,-1549.87884363,0.00024,2]
[374790648,1753446656453,-9264.48484889,0.00024,2]
[374790649,1753446656464,-168.0,0.00024018,2]
[374790650,1753446656474,-152.704267,0.0002402,6]
[374790651,1753446656485,-500.0,0.00024027,30]
[374790652,1753446656495,-2200.0,0.00024028,2]
[374790653,1753446656504,-462.0,0.00024034,2]
[374790654,1753446656514,-151.0,0.00024034,2]
[374790655,1753446656524,-151.0,0.00024034,2]
[374790656,1753446656533,-151.0,0.00024034,2]
[374790657,1753446656543,-151.0,0.00024034,2]
[374790658,1753446656552,-151.0,0.00024034,2]
[374790659,1753446656565,-151.0,0.00024034,2]
[374790660,1753446656575,-151.0,0.00024034,2]
[374790661,1753446656584,-151.0,0.00024034,2]
[374790662,1753446656595,-500.0,0.00024034,2]
[374790663,1753446656604,-151.0,0.00024034,2]
[374790664,1753446656614,-151.0,0.00024034,2]
[374790665,1753446656625,-155.42119693,0.00024034,2]
[374790666,1753446656635,-151.0,0.00024034,2]
[374790667,1753446656646,-151.0,0.00024034,7]
[374790668,1753446656656,-500.0,0.00024061,2]
[374790669,1753446656667,-1492.69,0.0002407,7]
[374790670,1753446656677,-154.821368,0.000241,2]
[374790671,1753446656688,-500.0,0.00024105,2]
[374790672,1753446656698,-460.0,0.00024109,2]
[374790673,1753446656710,-632.94,0.00024109,2]
[374790674,1753446656720,-887.82,0.00024109,2]
[374790675,1753446656729,-151.0,0.00024109,7]
[374790676,1753446656739,-151.0,0.00024109,7]
[374790677,1753446656748,-520.02,0.00024109,2]
[374790678,1753446656757,-4130.28,0.00024109,2]
[374790679,1753446656767,-588.86,0.00024109,2]
[374790680,1753446656777,-3401.29,0.00024109,2]
[374790681,1753446656786,-1596.19,0.00024109,2]
[374790682,1753446656798,-678.92,0.00024109,2]
[374790683,1753446656809,-1238.21,0.00024109,2]
[374790684,1753446656820,-1434.65,0.00024109,2]
[374790685,1753446656830,-469.39,0.00024109,2]
[374790686,1753446656840,-885.79,0.00024109,2]
[374790687,1753446656851,-1182.99,0.00024109,2]
[374790688,1753446656861,-1059.6,0.00024109,2]
[374790689,1753446656871,-753.31,0.00024109,2]
[374790690,1753446656880,-1227.54,0.00024109,2]
[374790691,1753446656889,-460.0,0.00024109,2]
[374790692,1753446656899,-460.0,0.00024109,2]
[374790693,1753446656909,-1026.89,0.00024109,2]
[374790694,1753446656919,-500.0,0.00024115,2]
[374790695,1753446656929,-500.0,0.00024134,2]
[374790696,1753446656939,-5000.0,0.00024135,3]
[374790697,1753446656949,-500.0,0.00024148,2]
[374790698,1753446656959,-600.0,0.00024153,2]
[374790699,1753446656969,-719.78113516,0.00024165,2]
[374790700,1753446656979,-1492.69,0.0002417,2]
[374790701,1753446656988,-500.0,0.00024171,2]
[374790702,1753446656999,-1849.81,0.000242,7]
[374790703,1753446657008,-2894.47,0.000242,7]
[374790704,1753446657018,-215.93003454,0.000242,3]
[374790705,1753446657028,-1080.79786783,0.0002421,10]
[374790706,1753446657038,-500.0,0.00024257,2]
[374790707,1753446657048,-168.0,0.00024257,2]
[374790708,1753446657057,-1492.69,0.0002427,5]
[374790709,1753446657067,-500.0,0.00024273,2]
[374790710,1753446657077,-500.0,0.00024273,2]
[374790711,1753446657086,-223.0315306,0.00024276,2]
[374790712,1753446657097,-168.0,0.00024279,2]
[374790713,1753446657106,-500.0,0.00024288,2]
[374790714,1753446657116,-500.0,0.000243,7]
[374790715,1753446657125,-8627.27,0.000243,7]
[374790716,1753446657138,-30778.82,0.000243,2]
[374790717,1753446657148,-151.0,0.000243,7]
[374790718,1753446657159,-1004.284523,0.000243,2]
[374790719,1753446657169,-151.0,0.000243,7]
[374790720,1753446657180,-368.337566,0.000243,7]
[374790721,1753446657191,-368.337573,0.000243,7]
[374790722,1753446657203,-462.0,0.00024308,2]
[374790723,1753446657213,-151.0,0.00024308,2]
[374790724,1753446657224,-208.0,0.00024308,2]
[374790725,1753446657234,-500.0,0.00024308,2]
[374790726,1753446657244,-198.0,0.00024308,2]
[374790727,1753446657256,-198.0,0.00024308,2]
[374790728,1753446657266,-151.0,0.00024308,2]
[374790729,1753446657352,-152.704267,0.0002433,8]
[374790730,1753446657363,-500.0,0.00024347,2]
[374790731,1753446657372,-500.0,0.00024361,2]
[374790732,1753446657382,-500.0,0.00024362,2]
[374790733,1753446657392,-1492.69,0.0002437,7]
[374790734,1753446657402,-363.5,0.00024383,2]
[374790735,1753446657412,-632.94,0.00024383,2]
[374790736,1753446657422,-887.82,0.00024383,2]
[374790737,1753446657433,-520.02,0.00024383,2]
[374790738,1753446657444,-4130.28,0.00024383,2]
[374790739,1753446657454,-588.86,0.00024383,2]
[374790740,1753446657463,-3401.29,0.00024383,2]
[374790741,1753446657474,-1596.19,0.00024383,2]
[374790742,1753446657485,-1238.21,0.00024383,2]
[374790743,1753446657495,-678.92,0.00024383,2]
[374790744,1753446657506,-1434.65,0.00024383,2]
[374790745,1753446657517,-469.39,0.00024383,2]
[374790746,1753446657528,-885.79,0.00024383,2]
[374790747,1753446657539,-1182.99,0.00024383,2]
[374790748,1753446657549,-1059.6,0.00024383,2]
[374790749,1753446657559,-753.31,0.00024383,2]
[374790750,1753446657570,-1227.54,0.00024383,2]
[374790751,1753446657581,-152.76,0.00024383,2]
[374790752,1753446657592,-460.0,0.00024383,2]
[374790753,1753446657602,-1026.89,0.00024383,2]
[374790754,1753446657612,-500.0,0.00024388,2]
[374790755,1753446657622,-151.0,0.000244,6]
[374790756,1753446657634,-151.0,0.000244,5]
[374790757,1753446657645,-500.0,0.00024401,2]
[374790758,1753446657654,-972.74372205,0.00024402,2]
[374790759,1753446657664,-222.367638,0.00024421,7]
[374790760,1753446657674,-133.96437921,0.00024421,7]
[374790761,1753446657791,-17.03562079,0.00024421,7]
[374790762,1753446657804,-152.704267,0.00024426,2]
[374790763,1753446657814,-1000.0,0.00024443,2]
[374790764,1753446657825,-1080.79786783,0.00024452,11]
[374790765,1753446657834,-360.53,0.00024454,2]
[374790766,1753446657845,-151.0,0.0002447,7]
[374790767,1753446657854,-1492.69,0.0002447,6]
[374790768,1753446657864,-200.0,0.000245,2]
[374790769,1753446657873,-151.0,0.000245,7]
[374790770,1753446657883,-152.704267,0.000245,30]
[374790771,1753446657894,-216.1,0.000245,6]
[374790772,1753446657904,-800.0,0.00024508,2]
[374790773,1753446657913,-152.704267,0.0002454,3]
[374790774,1753446657924,-168.0,0.00024546,2]
[374790775,1753446657934,-1492.69,0.0002457,2]
[374790776,1753446657944,-462.0,0.00024582,2]
[374790777,1753446657955,-151.0,0.00024582,2]
[374790778,1753446657966,-500.0,0.00024582,2]
[374790779,1753446657975,-245.0,0.00024582,2]
[374790780,1753446657985,-500.0,0.00024584,2]
[374790781,1753446657994,-500.0,0.00024596,2]
[374790782,1753446658004,-476.88235691,0.000246,3]
[374790783,1753446658014,-500.0,0.00024602,31]
[374790784,1753446658024,-500.0,0.00024616,2]
[374790785,1753446658034,-500.0,0.00024631,2]
[374790786,1753446658044,-500.0,0.00024641,2]
[374790787,1753446658053,-500.0,0.00024645,2]
[374790788,1753446658063,-116920.64113197,0.0002465,2]
[374790789,1753446658072,-502.42773269,0.0002465,2]
[374790790,1753446658084,-151.0,0.0002465,7]
[374790791,1753446658095,-265.162738,0.0002465,7]
[374790792,1753446658105,-266.232873,0.0002465,7]
[374790793,1753446658116,-632.94,0.00024657,2]
[374790794,1753446658126,-887.82,0.00024657,2]
[374790795,1753446658144,-520.02,0.00024657,2]
[374790796,1753446658162,-4130.28,0.00024657,2]
[374790797,1753446658172,-588.86,0.00024657,2]
[374790798,1753446658183,-3401.29,0.00024657,2]
[374790799,1753446658193,-1596.19,0.00024657,2]
[374790800,1753446658203,-678.92,0.00024657,2]
[374790801,1753446658214,-1238.21,0.00024657,2]
[374790802,1753446658225,-1434.65,0.00024657,2]
[374790803,1753446658235,-469.39,0.00024657,2]
[374790804,1753446658245,-885.79,0.00024657,2]
[374790805,1753446658256,-1182.99,0.00024657,2]
[374790806,1753446658267,-1059.6,0.00024657,2]
[374790807,1753446658279,-753.31,0.00024657,2]
[374790808,1753446658289,-1227.54,0.00024657,2]
[374790809,1753446658300,-460.0,0.00024657,2]
[374790810,1753446658310,-1026.89,0.00024657,2]
[374790811,1753446658320,-300.21077965,0.00024658,2]
[374790812,1753446658330,-380.0,0.00024658,2]
[374790813,1753446658339,-200.0,0.00024658,15]
[374790814,1753446658349,-151.0,0.00024658,7]
[374790815,1753446658359,-151.0,0.00024658,7]
[374790816,1753446658368,-151.0,0.00024658,7]
[374790817,1753446658378,-151.0,0.00024658,7]
[374790818,1753446658387,-179.5856,0.00024658,7]
[374790819,1753446658398,-152.704267,0.00024658,4]
[374790820,1753446658407,-221.25810164,0.00024658,2]
[374790821,1753446658416,-534.0,0.00024658,2]
[374790822,1753446658426,-1492.69,0.0002467,4]
[374790823,1753446658436,-1080.79786783,0.00024693,11]
[374790824,1753446658446,-7327.45652196,0.000247,2]
[374790825,1753446658456,-1211.2733208,0.00024713,14]
[374790826,1753446658465,-297.0,0.00024745,2]
[374790827,1753446658474,-500.0,0.00024762,2]
[374790828,1753446658484,-500.0,0.00024765,2]
[374790829,1753446658493,-1492.69,0.0002477,5]
[374790830,1753446658503,-16453.12414666,0.00024774,2]
[374790831,1753446658513,-1213.0,0.000248,2]
[374790832,1753446658522,-145573.27333128,0.000248,7]
[374790833,1753446658531,-357.14638871,0.000248,12]
[374790834,1753446658541,-151.0,0.000248,7]
[374790835,1753446658550,-3286.69,0.000248,14]
[374790836,1753446658559,-1000.0,0.000248,2]
[374790837,1753446658569,-8668.56881264,0.000248,2]
[374790838,1753446658578,-2596.42332189,0.00024811,2]
[374790839,1753446658587,-817.46577424,0.00024821,2]
[374790840,1753446658597,-7327.45652195,0.00024825,2]
[374790841,1753446658606,-8771.40950235,0.0002483,2]
[374790842,1753446658616,-211.0,0.0002484,12]
[374790843,1753446658626,-177.7876737,0.00024849,2]
[374790844,1753446658635,-462.0,0.00024856,2]
[374790845,1753446658645,-198.0,0.00024856,2]
[374790846,1753446658654,-500.0,0.00024856,2]
[374790847,1753446658664,-1492.69,0.0002487,7]
[374790848,1753446658674,-324.9286,0.000249,2]
[374790849,1753446658684,-324.9286,0.000249,2]
[374790850,1753446658693,-720092.2440053,0.000249,2]
[374790851,1753446658706,-6811.952421,0.000249,2]
[374790852,1753446658718,-25111.36426626,0.000249,2]
[374790853,1753446658782,-460.0,0.0002,2]
[374790854,1753446658792,-460.0,0.00020273,2]
[374790855,1753446658803,-460.0,0.00020547,2]
[374790856,1753446658814,-460.0,0.00020821,2]
[374790857,1753446658825,-2497.12,0.00023287,2]
[374790858,1753446658835,-905.85603854,0.00023561,2]
[374790859,1753446658846,-469.47107365,0.00023561,2]
[374790860,1753446659003,-429.8269109,0.00021151,2]
[374790861,1753446659014,-159.9857365,0.00021836,2]
[374790862,1753446659023,-643.0,0.000221,2]
[374790863,1753446659033,-178.3051933,0.00022438,2]
[374790864,1753446659043,-764.88372575,0.00023561,2]
[374790865,1753446659055,-356.90916206,0.00023561,2]
[374790866,1753446659065,-2497.12,0.00023835,2]
[374790867,1753446659075,-2497.12,0.00024109,2]
[374790868,1753446659086,-2497.12,0.00024383,2]
[374790869,1753446659096,-2497.12,0.00024657,2]
[374790870,1753446659106,-1477.15537757,0.000249,2]
[374790871,1753446659118,-1020.55924771,0.000249,2]
[374790872,1753446659214,-0.03675367,0.00021726,2]
[374790873,1753446659227,-577.73528003,0.00021726,2]
[374790874,1753446659238,-648.0,0.00021928,2]
[374790875,1753446659249,-312.16666667,0.00022,7]
[374790876,1753446659260,-152.76298444,0.000249,2]
[374790885,1753447330604,694.99,0.000176,6]
[374790888,1753447499885,153.0,0.00026,120]
[374790892,1753447561430,393.697559,0.00013699,2]
[374790937,1753447832264,-312.16666667,0.00018955,2]
[374790940,1753447832276,-300.0,0.00018977,2]
[374790941,1753447832286,-178.63584281,0.00018977,2]
[374790944,1753447832295,-14999.20705281,0.00018978,2]
[374790953,1753447832374,-3000.41,0.00018978,2]
[374791508,1753447838208,-770.37750259,0.00018978,2]
[374791514,1753447838263,-9810.39496809,0.00018978,2]
[374791517,1753447838273,-24900.0,0.00019016,2]
[374791519,1753447838283,-500.0,0.00019173,2]
[374791521,1753447838292,-500.8463787,0.00019173,2]
[374791523,1753447838302,-500.0,0.00019173,2]
[374791525,1753447838312,-501.99924546,0.00019173,2]
[374791527,1753447838321,-526.53794159,0.00019173,2]
[374791529,1753447838330,-500.0,0.00019173,2]
[374791531,1753447838341,-460.0,0.00019178,2]
[374791533,1753447838350,-460.0,0.00019178,2]
[374791535,1753447838359,-460.0,0.00019178,2]
[374791538,1753447838368,-460.0,0.00019178,2]
[374791540,1753447838378,-460.0,0.00019178,2]
[374791543,1753447838387,-460.0,0.00019178,2]
[374791545,1753447838396,-460.0,0.00019178,2]
[374791548,1753447838405,-460.0,0.00019178,2]
[374791550,1753447838414,-460.0,0.00019178,2]
[374791552,1753447838423,-460.0,0.00019178,2]
[374791554,1753447838433,-460.0,0.00019178,2]
[374791556,1753447838442,-460.0,0.00019178,2]
[374791558,1753447838451,-460.0,0.00019178,2]
[374791560,1753447838460,-460.0,0.00019178,2]
[374791562,1753447838469,-357.40426177,0.00019178,2]
[374791564,1753447838479,-464.33747465,0.00019178,2]
[374791566,1753447838488,-460.0,0.00019178,2]
[374791568,1753447838502,-460.0,0.00019178,2]
[374791570,1753447838512,-460.0,0.00019178,2]
[374791572,1753447838521,-460.0,0.00019178,2]
[374791574,1753447838532,-460.0,0.00019178,2]
[374791576,1753447838542,-460.0,0.00019178,2]
[374791578,1753447838551,-460.0,0.00019178,2]
[374791580,1753447838560,-460.0,0.00019178,2]
[374791582,1753447838571,-460.0,0.00019178,2]
[374791584,1753447838580,-159.13280513,0.00019178,2]
[374791586,1753447838591,-460.0,0.00019178,2]
[374791588,1753447838601,-460.0,0.00019178,2]
[374791590,1753447838610,-460.0,0.00019178,2]
[374791592,1753447838620,-460.0,0.00019178,2]
[374791594,1753447838629,-460.0,0.00019178,2]
[374791596,1753447838640,-460.0,0.00019178,2]
[374791598,1753447838650,-460.0,0.00019178,2]
[374791600,1753447838660,-460.0,0.00019178,2]
[374791602,1753447838670,-460.0,0.00019178,2]
[374791604,1753447838679,-460.0,0.00019178,2]
[374791606,1753447838688,-460.0,0.00019178,2]
[374791608,1753447838697,-460.0,0.00019178,2]
[374791610,1753447838707,-460.0,0.00019178,2]
[374791612,1753447838716,-418.82121395,0.00019178,2]
[374791614,1753447838726,-460.0,0.00019178,2]
[374791616,1753447838736,-460.0,0.00019178,2]
[374791618,1753447838745,-460.0,0.00019178,2]
[374791620,1753447838754,-460.0,0.00019178,2]
[374791622,1753447838764,-460.0,0.00019178,2]
[374791624,1753447838773,-460.0,0.00019178,2]
[374791626,1753447838783,-460.0,0.00019178,2]
[374791628,1753447838792,-460.0,0.00019178,2]
[374791630,1753447838802,-460.0,0.00019178,2]
[374791632,1753447838811,-460.0,0.00019178,2]
[374791634,1753447838820,-460.0,0.00019178,2]
[374791636,1753447838830,-460.0,0.00019178,2]
[374791638,1753447838841,-460.0,0.00019178,2]
[374791640,1753447838850,-460.0,0.00019178,2]
[374791642,1753447838860,-460.0,0.00019178,2]
[374791644,1753447838870,-460.0,0.00019178,2]
[374791646,1753447838879,-460.0,0.00019178,2]
[374791648,1753447838888,-460.0,0.00019178,2]
[374791650,1753447838897,-2004.87,0.00019178,2]
[374791652,1753447838907,-460.0,0.00019178,2]
[374791654,1753447838917,-460.0,0.00019178,2]
[374791656,1753447838928,-460.0,0.00019178,2]
[374791658,1753447838938,-1417.2,0.00019178,2]
[374791661,1753447838947,-556.73733778,0.00019178,2]
[374791662,1753447838956,-460.0,0.00019178,2]
[374791665,1753447838967,-240.3396799,0.00019178,2]
[374791667,1753447838976,-460.0,0.00019178,2]
[374791669,1753447838986,-567.51,0.00019178,2]
[374791671,1753447838995,-731.58,0.00019178,2]
[374791673,1753447839005,-381.84,0.00019178,2]
[374791675,1753447839014,-717.33,0.00019178,2]
[374791677,1753447839023,-460.0,0.00019178,2]
[374791679,1753447839034,-460.0,0.00019178,2]
[374791681,1753447839043,-460.0,0.00019178,2]
[374791683,1753447839054,-360.61101133,0.00019178,2]
[374791685,1753447839063,-460.0,0.00019178,2]
[374791687,1753447839073,-460.0,0.00019178,2]
[374791689,1753447839082,-460.0,0.00019178,2]
[374791691,1753447839093,-460.0,0.00019178,2]
[374791693,1753447839102,-460.0,0.00019178,2]
[374791695,1753447839111,-460.0,0.00019178,2]
[374791697,1753447839120,-640.78,0.00019178,2]
[374791699,1753447839130,-460.0,0.00019178,2]
[374791701,1753447839140,-460.0,0.00019178,2]
[374791703,1753447839150,-460.0,0.00019178,2]
[374791705,1753447839160,-664.92,0.00019178,2]
[374791707,1753447839170,-573.95,0.00019178,2]
[374791709,1753447839180,-460.0,0.00019178,2]
[374791711,1753447839190,-460.0,0.00019178,2]
[374791713,1753447839199,-461.5,0.00019178,2]
[374791715,1753447839209,-862.99,0.00019178,2]
[374791717,1753447839219,-460.0,0.00019178,2]
[374791720,1753447839233,-460.0,0.00019178,2]
[374791722,1753447839243,-460.0,0.00019178,2]
[374791724,1753447839254,-666.0,0.00019178,2]
[374791726,1753447839264,-176.892421,0.00019178,2]
[374791728,1753447839276,-460.0,0.00019452,2]
[374791730,1753447839286,-460.0,0.00019452,2]
[374791732,1753447839296,-460.0,0.00019452,2]
[374791734,1753447839305,-460.0,0.00019452,2]
[374791736,1753447839315,-460.0,0.00019452,2]
[374791738,1753447839324,-460.0,0.00019452,2]
[374791740,1753447839334,-460.0,0.00019452,2]
[374791742,1753447839348,-460.0,0.00019452,2]
[374791744,1753447839358,-460.0,0.00019452,2]
[374791746,1753447839367,-460.0,0.00019452,2]
[374791748,1753447839378,-460.0,0.00019452,2]
[374791750,1753447839389,-460.0,0.00019452,2]
[374791752,1753447839398,-460.0,0.00019452,2]
[374791754,1753447839409,-460.0,0.00019452,2]
[374791756,1753447839418,-489.8824245,0.00019452,2]
[374791759,1753447839427,-460.0,0.00019452,2]
[374791761,1753447839438,-460.0,0.00019452,2]
[374791763,1753447839449,-460.0,0.00019452,2]
[374791765,1753447839458,-460.0,0.00019452,2]
[374791767,1753447839467,-460.0,0.00019452,2]
[374791769,1753447839477,-460.0,0.00019452,2]
[374791771,1753447839487,-460.0,0.00019452,2]
[374791773,1753447839500,-460.0,0.00019452,2]
[374791775,1753447839510,-460.0,0.00019452,2]
[374791777,1753447839520,-460.0,0.00019452,2]
[374791779,1753447839531,-460.0,0.00019452,2]
[374791781,1753447839540,-460.0,0.00019452,2]
[374791783,1753447839550,-460.0,0.00019452,2]
[374791785,1753447839559,-460.0,0.00019452,2]
[374791787,1753447839570,-460.0,0.00019452,2]
[374791789,1753447839582,-460.0,0.00019452,2]
[374791791,1753447839594,-460.0,0.00019452,2]
[374791793,1753447839604,-460.0,0.00019452,2]
[374791796,1753447839613,-460.0,0.00019452,2]
[374791798,1753447839623,-195.41023623,0.00019452,2]
[374791800,1753447839632,-460.0,0.00019452,2]
[374791801,1753447839641,-460.0,0.00019452,2]
[374791817,1753447839778,-460.0,0.00019452,2]
[374791819,1753447839788,-2004.87,0.00019452,2]
[374791821,1753447839799,-480.8113789,0.00019452,2]
[374791824,1753447839810,-1417.2,0.00019452,2]
[374791827,1753447839820,-460.0,0.00019452,2]
[374791829,1753447839830,-464.66738825,0.00019452,2]
[374791832,1753447839841,-567.51,0.00019452,2]
[374791835,1753447839850,-731.58,0.00019452,2]
[374791837,1753447839859,-717.33,0.00019452,2]
[374791841,1753447839869,-460.0,0.00019452,2]
[374791843,1753447839878,-460.0,0.00019452,2]
[374791844,1753447839888,-460.0,0.00019452,2]
[374791847,1753447839897,-460.0,0.00019452,2]
[374791848,1753447839907,-460.0,0.00019452,2]
[374791851,1753447839918,-460.0,0.00019452,2]
[374791853,1753447839927,-460.0,0.00019452,2]
[374791855,1753447839938,-640.78,0.00019452,2]
[374791857,1753447839948,-460.0,0.00019452,2]
[374791859,1753447839957,-460.0,0.00019452,2]
[374791861,1753447839967,-562.16,0.00019452,2]
[374791863,1753447839976,-664.92,0.00019452,2]
[374791865,1753447839985,-573.95,0.00019452,2]
[374791867,1753447839995,-460.0,0.00019452,2]
[374791869,1753447840005,-460.0,0.00019452,2]
[374791871,1753447840015,-862.99,0.00019452,2]
[374791873,1753447840024,-460.0,0.00019452,2]
[374791874,1753447840033,-193.0448841,0.00019452,2]
[374791877,1753447840043,-269.13532546,0.00019721,2]
[374791878,1753447840054,-331.82162465,0.00019726,2]
[374791880,1753447840064,-460.0,0.00019726,2]
[374791882,1753447840075,-460.0,0.00019726,2]
[374791884,1753447840085,-460.0,0.00019726,2]
[374791886,1753447840097,-460.0,0.00019726,2]
[374791888,1753447840108,-460.0,0.00019726,2]
[374791890,1753447840117,-460.0,0.00019726,2]
[374791892,1753447840127,-460.0,0.00019726,2]
[374791894,1753447840136,-460.0,0.00019726,2]
[374791896,1753447840146,-460.0,0.00019726,2]
[374791898,1753447840155,-460.0,0.00019726,2]
[374791900,1753447840164,-479.21620065,0.00019726,2]
[374791902,1753447840174,-460.0,0.00019726,2]
[374791904,1753447840183,-460.0,0.00019726,2]
[374791906,1753447840193,-460.0,0.00019726,2]
[374791908,1753447840203,-460.0,0.00019726,2]
[374791910,1753447840213,-460.0,0.00019726,2]
[374791912,1753447840222,-460.0,0.00019726,2]
[374791914,1753447840232,-460.0,0.00019726,2]
[374791916,1753447840241,-182.39,0.00019726,2]
[374791918,1753447840251,-460.0,0.00019726,2]
[374791920,1753447840261,-568.99,0.00019726,2]
[374791922,1753447840270,-163.8,0.00019726,2]
[374791924,1753447840281,-460.0,0.00019726,2]
[374791926,1753447840291,-460.0,0.00019726,2]
[374791928,1753447840301,-460.0,0.00019726,2]
[374791930,1753447840310,-2004.87,0.00019726,2]
[374791933,1753447840319,-1417.2,0.00019726,2]